bitfinex-derivatives/quotes_ETHF0:USTF0_20240925
["timestamp","ask_amount","ask_price","bid_price","bid_amount"]
[1727275283417,2.67,2625.5,2625.2,0.38093]
[1727275283621,2.67,2625.5,2624.9,3.2078]
[1727275283917,2.67,2625.5,2625.3,8.0503806]
[1727275284118,2.67,2625.5,2625.2,0.38093]
[1727275284416,2.67,2625.5,2625.3,8.09300817]
[1727275284918,2.67,2625.5,2625.2,0.38093]
[1727275285113,2.67,2625.5,2625.3,0.38092]
[1727275285322,0.38087,2625.7,2625.4,0.38091]
[1727275285323,2.67,2625.7,2625.4,0.38091]
[1727275285704,3.0439,2625.9,2625.4,3.2078]
[1727275285909,0.3739,2625.9,2625.7,3.2078]
[1727275286105,0.3739,2625.9,2625.8,0.38085]
[1727275287823,0.3739,2625.9,2625.7,0.38086]
[1727275288122,0.3739,2625.9,2625.8,0.38085]
[1727275288707,0.3739,2625.9,2625.7,0.38086]
[1727275288913,0.3739,2625.9,2625.8,0.38085]
[1727275291020,0.74647,2626.4,2626.1,0.3808]
[1727275291229,0.3904,2626.2,2626.0,0.38082]
[1727275291729,0.3657,2626.4,2626.3,0.38078]
[1727275291923,0.3657,2626.4,2625.9,0.9521]
[1727275291924,0.7443,2626.4,2626.0,3.2078]
[1727275292117,0.7443,2626.4,2626.2,0.38078]
[1727275292311,0.7443,2626.4,2626.1,0.3808]
[1727275292523,0.7443,2626.4,2626.2,0.38078]
[1727275292718,0.7443,2626.4,2626.0,3.2078]
[1727275292719,0.7443,2626.4,2626.1,0.3808]
[1727275293326,0.7443,2626.4,2626.1,0.38079]
[1727275293528,0.7443,2626.4,2626.2,0.38079]
[1727275293728,0.7443,2626.4,2626.1,0.3808]
[1727275295218,0.7443,2626.4,2626.2,0.38079]
[1727275295615,0.3786,2626.4,2626.3,0.38078]
[1727275295817,3.0409,2626.9,2626.4,0.38076]
[1727275296026,0.3671,2626.8,2626.6,0.38073]
[1727275296221,0.3671,2626.8,2626.3,14.91350011]
[1727275296720,0.3671,2626.8,2626.7,0.38072]
[1727275297436,0.3671,2626.8,2626.3,6.82975]
[1727275297437,0.3671,2626.8,2626.3,3.2078]
[1727275297727,0.74781,2626.8,2626.5,0.38075]
[1727275298130,2.67,2626.7,2626.5,0.38075]
[1727275298528,2.67,2626.7,2626.4,8.11412735]
[1727275298744,2.67,2626.7,2626.6,0.38073]
[1727275299226,2.67,2626.7,2626.4,8.11412735]
[1727275299227,3.05073,2626.7,2626.4,0.38076]
[1727275299725,0.3671,2626.8,2626.4,0.38076]
[1727275299726,2.67,2626.6,2626.4,0.38076]
[1727275299932,2.67,2626.6,2626.3,0.38077]
[1727275300228,2.67,2626.4,2626.0,3.2078]
[1727275300423,0.3814,2626.3,2626.2,0.38079]
[1727275300632,0.3814,2626.3,2626.2,8.27488805]
[1727275300825,0.3814,2626.3,2626.2,0.38079]
[1727275301330,0.3814,2626.3,2626.0,3.2078]
[1727275301630,0.3814,2626.3,2626.2,0.38079]
[1727275302735,0.3814,2626.3,2626.1,0.3808]
[1727275303030,0.779,2626.3,2626.1,8.44213151]
[1727275303233,0.779,2626.3,2626.2,0.38079]
[1727275303940,0.779,2626.3,2626.1,0.3808]
[1727275304130,0.779,2626.3,2626.2,0.38079]
[1727275304828,0.3814,2626.3,2626.2,0.38079]
[1727275305031,0.38073,2626.7,2626.4,0.38076]
[1727275305237,0.3979,2626.6,2626.4,0.38076]
[1727275305626,0.3979,2626.6,2626.4,0.38075]
[1727275306131,0.3979,2626.6,2626.5,0.38075]
[1727275306639,0.3976,2626.8,2626.7,0.38072]
[1727275306836,0.7625,2626.8,2626.7,0.38072]
[1727275307035,5.43909422,2627.2,2627.0,0.38067]
[1727275307036,4.65963351,2627.2,2627.0,0.38067]
[1727275307226,0.3649,2627.1,2627.0,0.38067]
[1727275307427,4.1713,2627.1,2626.9,0.38069]
[1727275307738,0.3649,2627.1,2626.9,0.38069]
[1727275308237,4.1713,2627.1,2626.9,0.38069]
[1727275308736,0.3649,2627.1,2626.9,0.38069]
[1727275309536,0.3649,2627.1,2626.6,3.2078]
[1727275309732,0.3649,2627.1,2626.9,0.38068]
[1727275310629,0.3649,2627.1,2626.9,0.38069]
[1727275311333,0.3649,2627.1,2627.0,0.38068]
[1727275313630,3.0349,2627.1,2626.9,0.38068]
[1727275313931,3.0349,2627.1,2626.8,7.80326673]
[1727275314133,3.41556,2627.1,2626.8,8.18396673]
[1727275314340,3.41556,2627.1,2626.8,0.3807]
[1727275315039,3.41556,2627.1,2626.6,3.2078]
[1727275315335,3.41556,2627.1,2626.8,0.3807]
[1727275315839,3.41556,2627.1,2626.9,0.38069]
[1727275316032,3.05068,2627.0,2626.4,6.28613572]
[1727275316234,3.05068,2627.0,2626.8,0.3807]
[1727275316440,2.67,2627.0,2626.8,8.45290521]
[1727275316738,2.67,2627.0,2626.4,4.59262572]
[1727275316935,2.67,2626.5,2626.4,1.36967572]
[1727275317329,2.67,2626.5,2626.4,9.13919858]
[1727275318034,2.67,2626.5,2626.4,9.51995858]
[1727275318239,1.1419,2626.6,2626.5,0.38075]
[1727275318845,1.1419,2626.6,2626.4,9.51994858]
[1727275319035,1.1419,2626.6,2626.4,8.53102286]
[1727275319743,1.1419,2626.6,2626.5,0.38075]
[1727275319936,1.1419,2626.6,2626.4,8.53102286]
[1727275320137,1.1419,2626.6,2626.4,8.53103286]
[1727275320332,2.67,2626.5,2626.4,8.15027286]
[1727275320640,2.67,2626.5,2626.1,0.3808]
[1727275320641,3.05076,2626.5,2626.1,0.3808]
[1727275320848,2.67,2626.3,2626.2,0.38079]
[1727275321065,1.52265,2626.6,2626.3,0.38077]
[1727275321066,2.67,2626.5,2626.3,0.38077]
[1727275321341,2.67,2626.5,2626.4,0.38076]
[1727275321538,2.67,2626.5,2626.3,0.38077]
[1727275321741,2.67,2626.5,2626.0,3.2078]
[1727275322041,2.24159477,2627.2,2626.0,3.2078]
[1727275322042,2.67,2627.1,2626.4,3.2078]
[1727275322241,0.3966,2626.9,2626.8,0.3807]
[1727275322441,0.3927,2627.2,2627.1,0.38066]
[1727275322634,0.7893,2627.2,2627.1,0.38066]
[1727275322832,1.98890086,2627.8,2627.4,0.38061]
[1727275322833,0.3966,2627.5,2627.4,0.38061]
[1727275323541,0.3966,2627.5,2627.3,3.2078]
[1727275324838,0.3966,2627.5,2627.3,3.58843]
[1727275325031,0.3966,2627.5,2627.3,3.58842]
[1727275325436,0.3966,2627.5,2627.4,0.38062]
[1727275325945,3.59,2627.9,2627.6,0.38058]
[1727275326135,3.59,2627.9,2627.7,0.38057]
[1727275326338,1.15893,2628.1,2627.7,0.38057]
[1727275326741,0.3858,2628.1,2627.7,3.2078]
[1727275326940,0.3957,2628.3,2627.8,8.14335018]
[1727275327140,0.3858,2628.5,2628.3,0.38048]
[1727275327344,0.3858,2628.5,2628.4,0.38047]
[1727275327649,0.3858,2628.5,2628.0,3.2078]
[1727275327650,0.3858,2628.5,2628.3,0.38048]
[1727275327846,0.3858,2628.5,2628.1,7.81164096]
[1727275328152,0.3957,2628.7,2628.2,4.25443455]
[1727275328338,0.3935,2628.6,2628.3,3.2078]
[1727275328645,0.38049,2628.3,2627.8,3.9608]
[1727275328948,0.38048,2628.4,2628.0,0.38053]
[1727275329247,0.38048,2628.4,2628.1,7.79052579]
[1727275329446,0.3935,2628.6,2628.1,7.79052579]
[1727275329634,0.38048,2628.4,2628.0,0.38052]
[1727275330043,0.38048,2628.4,2628.0,8.24888314]
[1727275330242,0.3935,2628.6,2628.0,0.38052]
[1727275330446,0.3805,2628.3,2627.9,0.38054]
[1727275330743,0.3935,2628.6,2627.6,3.2078]
[1727275330744,0.3949,2628.2,2627.6,3.2078]
[1727275330951,0.76262,2628.1,2627.8,0.38055]
[1727275331146,0.76262,2628.1,2627.9,8.13545325]
[1727275331147,0.3935,2628.0,2627.9,8.13545325]
[1727275331346,0.3935,2628.0,2627.8,0.38055]
[1727275331742,0.77404,2628.0,2627.7,0.38056]
[1727275331941,0.77404,2628.0,2627.7,0.38058]
[1727275331942,0.3935,2628.0,2627.7,0.38058]
[1727275332247,0.38055,2627.9,2627.7,8.0777393]
[1727275332446,0.3935,2628.0,2627.5,0.3806]
[1727275332647,0.3935,2628.0,2627.3,3.2078]
[1727275332947,0.38057,2627.8,2627.6,0.38059]
[1727275333489,0.38058,2627.7,2627.4,0.38061]
[1727275333642,0.38058,2627.7,2627.3,3.2078]
[1727275333643,0.3882,2627.7,2627.5,0.3806]
[1727275334049,0.76878,2627.7,2627.5,0.3806]
[1727275334574,0.3882,2627.7,2627.5,0.3806]
[1727275334743,0.76878,2627.7,2627.5,0.3806]
[1727275335660,0.3882,2627.7,2627.3,3.2078]
[1727275335954,0.3882,2627.7,2627.5,0.3806]
[1727275336340,0.3882,2627.7,2627.6,0.38059]
[1727275337346,0.3882,2627.7,2627.3,3.58842]
[1727275337347,0.76878,2627.7,2627.3,3.58842]
[1727275337548,0.76878,2627.7,2627.4,0.38061]
[1727275337751,0.76878,2627.7,2627.4,8.48482622]
[1727275338753,0.76878,2627.7,2627.4,8.10421622]
[1727275338952,0.3882,2627.7,2627.4,8.10421622]
[1727275339156,0.3882,2627.7,2627.1,0.38065]
[1727275339157,5.14526,2627.7,2627.1,0.38065]
[1727275339457,0.38061,2627.5,2626.9,3.2078]
[1727275339650,0.3798,2627.4,2627.1,7.86335695]
[1727275339847,0.7516,2627.4,2627.2,0.38064]
[1727275340345,0.38065,2627.2,2626.7,3.2078]
[1727275340546,3.29,2627.2,2626.7,3.2078]
[1727275340742,0.3714,2627.1,2627.0,0.38068]
[1727275340946,0.3798,2627.4,2627.3,0.38063]
[1727275341449,0.3798,2627.4,2627.2,0.38064]
[1727275341646,0.3798,2627.4,2627.2,0.38065]
[1727275342058,0.3798,2627.4,2627.3,0.38063]
[1727275342253,0.3714,2627.7,2627.6,0.38059]
[1727275342552,0.3714,2627.7,2627.5,0.38059]
[1727275343355,0.3714,2627.7,2627.5,0.3806]
[1727275343554,0.3714,2627.7,2627.4,8.52746881]
[1727275344064,0.3714,2627.7,2627.6,0.38059]
[1727275344252,0.3856,2627.9,2627.6,0.38059]
[1727275344453,0.3856,2627.9,2627.4,8.14685881]
[1727275344658,0.38057,2627.8,2627.4,0.38062]
[1727275345051,0.38057,2627.8,2627.3,0.38062]
[1727275345252,0.38058,2627.7,2627.3,0.38062]
[1727275345453,0.38058,2627.7,2627.4,8.18177703]
[1727275345655,0.38059,2627.6,2627.4,8.18177703]
[1727275345861,3.29,2627.8,2627.1,0.3985]
[1727275346064,3.6607,2627.5,2627.0,3.2078]
[1727275346358,3.67066,2627.2,2626.8,0.3807]
[1727275347054,3.67066,2627.2,2626.7,3.2078]
[1727275347055,3.29,2627.2,2626.7,3.2078]
[1727275347262,3.29,2627.2,2626.7,0.38071]
[1727275347560,0.38068,2627.0,2626.4,1.1285]
[1727275347749,0.7533,2626.9,2626.4,1.1285]
[1727275347949,0.7533,2626.9,2626.7,0.38072]
[1727275348352,0.7533,2626.9,2626.4,1.1285]
[1727275348353,0.7533,2626.9,2626.6,0.38073]
[1727275348558,0.7533,2626.9,2626.7,0.38072]
[1727275348957,3.2078,2627.4,2626.5,3.2078]
[1727275349165,0.7533,2627.3,2627.0,0.38067]
[1727275349554,0.7533,2627.3,2627.0,0.38068]
[1727275349957,1.13394,2627.3,2626.9,0.38068]
[1727275350256,1.13394,2627.3,2626.8,0.38069]
[1727275350455,1.13394,2627.3,2627.0,8.13647464]
[1727275350762,1.13394,2627.3,2626.9,8.13647464]
[1727275350763,0.7533,2627.3,2626.9,8.13647464]
[1727275350952,1.13394,2627.3,2626.9,0.38069]
[1727275351265,0.7533,2627.3,2627.0,8.03861021]
[1727275351457,0.38066,2627.1,2627.0,8.03861021]
[1727275351655,0.38066,2627.1,2626.8,0.3807]
[1727275351656,0.38065,2627.2,2626.5,3.2078]
[1727275351858,0.403,2627.0,2626.8,0.3807]
[1727275352753,0.403,2627.0,2626.5,3.2078]
[1727275352947,0.78369,2627.0,2626.5,3.2078]
[1727275353153,0.78369,2627.0,2626.6,8.43114546]
[1727275353462,0.78369,2627.0,2626.7,0.38072]
[1727275353761,0.403,2627.0,2626.5,3.2078]
[1727275353964,0.38073,2626.6,2626.5,3.2078]
[1727275354460,0.38076,2626.5,2626.3,0.38078]
[1727275354662,0.38076,2626.5,2626.0,0.38081]
[1727275354663,0.38079,2626.3,2626.0,0.38081]
[1727275354857,0.76245,2626.5,2626.2,0.38078]
[1727275355056,0.76245,2626.5,2626.3,0.38078]
[1727275355057,0.3817,2626.5,2626.3,0.38078]
[1727275355461,0.3817,2626.5,2626.4,0.38076]
[1727275356156,1.12422,2626.7,2626.6,0.38073]
[1727275356157,0.3679,2626.7,2626.6,0.38073]
[1727275356657,0.3817,2627.0,2626.7,0.38071]
[1727275356867,0.3962,2627.0,2626.9,0.38069]
[1727275357750,1.13943,2627.4,2627.0,0.38067]
[1727275357955,1.13943,2627.4,2626.9,0.38068]
[1727275357956,0.77683,2627.3,2626.9,0.38068]
[1727275358167,0.3962,2627.3,2627.0,0.38068]
[1727275358359,0.3962,2627.3,2626.8,3.2078]
[1727275358555,0.3962,2627.3,2627.0,0.38067]
[1727275359062,0.3962,2627.3,2626.8,3.2078]
[1727275359265,0.3962,2627.3,2627.1,0.38065]
[1727275359463,0.3962,2627.3,2626.8,3.2078]
[1727275359658,0.3962,2627.3,2627.0,0.38067]
[1727275359866,0.3962,2627.3,2626.9,0.38068]
[1727275360063,0.3962,2627.3,2627.0,0.38067]
[1727275360272,0.3962,2627.3,2627.2,0.38065]
[1727275360464,0.3962,2627.3,2626.8,3.2078]
[1727275360660,0.3962,2627.3,2627.1,0.38065]
[1727275363260,0.3962,2627.3,2627.0,0.38067]
[1727275363461,0.3962,2627.3,2627.1,0.38066]
[1727275364266,0.3962,2627.3,2627.2,0.38065]
[1727275364968,0.3962,2627.3,2627.1,3.58845]
[1727275365164,0.3962,2627.3,2627.1,3.58846]
[1727275365378,0.3962,2627.3,2627.1,3.2078]
[1727275365668,3.2078,2627.6,2627.3,0.38063]
[1727275365868,3.6082,2627.6,2627.3,0.38063]
[1727275366062,3.98879,2627.6,2627.3,0.38063]
[1727275366272,3.6082,2627.6,2627.4,0.38061]
[1727275366466,3.98879,2627.6,2627.3,0.38063]
[1727275366665,3.98879,2627.6,2627.2,8.90309794]
[1727275366871,3.98879,2627.6,2627.3,0.38063]
[1727275367074,0.38061,2627.5,2627.1,3.2078]
[1727275367256,0.38061,2627.5,2627.1,3.58845]
[1727275367464,0.38061,2627.5,2627.2,7.97533679]
[1727275367663,3.6082,2627.6,2627.2,7.97533679]
[1727275367863,0.38061,2627.5,2627.2,8.35597679]
[1727275368172,3.9888,2627.6,2627.3,0.38063]
[1727275368366,0.38061,2627.5,2627.2,8.35597679]
[1727275368762,3.6082,2627.6,2627.2,8.35597679]
[1727275368763,0.38062,2627.4,2627.2,8.35597679]
[1727275369067,0.38061,2627.5,2627.3,0.38062]
[1727275369276,0.38062,2627.4,2627.2,8.35597679]
[1727275369569,0.38061,2627.5,2627.3,0.38062]
[1727275370561,0.38061,2627.5,2627.4,0.38062]
[1727275370762,3.98879,2627.6,2627.4,0.38062]
[1727275371565,0.4004,2627.6,2627.5,0.3806]
[1727275372576,0.3938,2627.8,2627.7,0.38058]
[1727275372874,0.3938,2627.8,2627.4,0.95155]
[1727275372875,3.5791,2627.9,2627.6,0.38058]
[1727275373167,3.95966,2627.9,2627.6,0.38058]
[1727275373377,3.95966,2627.9,2627.4,3.2078]
[1727275373571,3.5791,2627.9,2627.4,3.2078]
[1727275373780,3.95966,2627.9,2627.6,0.38059]
[1727275373970,3.5791,2627.9,2627.6,0.38059]
[1727275374281,0.38056,2627.8,2627.6,0.38059]
[1727275375373,3.95965,2627.9,2627.6,0.38059]
[1727275375572,3.95965,2627.9,2627.7,0.38056]
[1727275375775,0.3713,2627.9,2627.8,0.38056]
[1727275375975,0.384,2628.3,2627.7,5.8778]
[1727275376172,2.67,2628.5,2627.7,5.8778]
[1727275376173,0.3913,2628.2,2628.1,0.38051]
[1727275376376,0.3913,2628.2,2628.0,0.75003]
[1727275376771,0.3913,2628.2,2628.0,8.73182779]
[1727275376967,3.0504,2628.5,2628.3,0.38048]
[1727275376968,0.3804,2628.5,2628.3,0.38048]
[1727275377173,0.3804,2628.5,2628.4,0.38047]
[1727275377773,0.4022,2628.6,2628.2,8.27413608]
[1727275377973,0.4022,2628.6,2628.5,0.38046]
[1727275378273,0.4022,2628.6,2628.2,8.27413608]
[1727275378675,0.4022,2628.6,2628.4,0.38047]
[1727275379276,0.4022,2628.6,2628.5,0.38046]
[1727275380383,0.4022,2628.6,2628.4,0.38047]
[1727275380768,0.4022,2628.6,2628.3,0.3757]
[1727275380973,0.4022,2628.6,2628.1,3.2078]
[1727275381284,0.4022,2628.6,2628.3,8.19363808]
[1727275381285,0.78265,2628.6,2628.3,8.19363808]
[1727275381472,0.4022,2628.6,2628.3,8.19363808]
[1727275381681,0.4022,2628.6,2628.1,8.19363808]
[1727275381682,0.38051,2628.2,2628.1,8.19363808]
[1727275381880,0.38051,2628.2,2627.8,3.58835]
[1727275382065,1.53472,2628.1,2627.9,8.14860547]
[1727275382271,1.53473,2628.1,2627.8,3.2078]
[1727275382474,1.1542,2628.1,2627.8,0.38055]
[1727275382670,1.1542,2628.1,2627.8,0.38056]
[1727275382875,1.53472,2628.1,2627.8,0.38056]
[1727275383079,0.38053,2628.0,2627.7,0.38056]
[1727275383374,0.38053,2628.0,2627.8,0.38056]
[1727275383582,1.1542,2628.1,2627.7,7.93389964]
[1727275383787,0.38054,2628.0,2627.7,0.38057]
[1727275384096,1.1542,2628.1,2627.6,0.38058]
[1727275384097,0.38055,2627.9,2627.6,0.38058]
[1727275384597,0.38057,2627.8,2627.6,0.38059]
[1727275384773,3.2078,2627.9,2627.3,3.2078]
[1727275384969,0.38058,2627.7,2627.5,0.3806]
[1727275385169,0.4001,2627.6,2627.5,0.3806]
[1727275385372,0.4001,2627.6,2627.3,3.2078]
[1727275385584,0.3853,2627.5,2627.3,3.2078]
[1727275385786,0.3853,2627.5,2627.4,0.38062]
[1727275386585,0.3853,2627.5,2627.3,3.58842]
[1727275387677,0.76591,2627.5,2627.3,3.58842]
[1727275387884,0.76591,2627.5,2627.3,3.2078]
[1727275388374,0.76591,2627.5,2627.3,3.58843]
[1727275388570,0.3853,2627.5,2627.3,3.58843]
[1727275388799,0.76591,2627.5,2627.3,3.58843]
[1727275389182,0.76591,2627.5,2627.3,3.2078]
[1727275389381,0.76591,2627.5,2627.3,3.58843]
[1727275389684,0.76591,2627.5,2627.3,3.2078]
[1727275389987,0.76591,2627.5,2627.3,3.58843]
[1727275390189,0.76591,2627.5,2626.8,0.98892572]
[1727275390190,0.38066,2627.1,2626.8,0.98892572]
[1727275390484,0.38066,2627.1,2626.7,5.44568858]
[1727275390485,0.95161,2627.3,2626.9,7.799129]
[1727275390687,1.72578,2627.0,2626.9,7.799129]
[1727275390887,0.95181,2626.8,2626.3,3.2078]
[1727275391185,0.7378,2626.7,2626.4,0.38076]
[1727275391378,0.38074,2626.6,2626.4,0.38076]
[1727275391778,0.3709,2626.7,2626.3,3.2078]
[1727275391984,0.3709,2626.7,2626.5,0.38074]
[1727275391985,0.75162,2626.7,2626.5,0.38074]
[1727275392779,0.3709,2626.7,2626.5,0.38074]
[1727275392981,0.75162,2626.7,2626.5,0.38074]
[1727275393490,0.3709,2626.7,2626.6,0.38073]
[1727275393884,3.9681,2627.0,2626.4,0.38076]
[1727275394178,3.9681,2627.0,2626.8,0.3807]
[1727275394179,1.14098,2627.0,2626.8,0.3807]
[1727275394490,1.14098,2627.0,2626.6,3.2078]
[1727275394491,0.3934,2627.0,2626.6,3.2078]
[1727275394695,0.3934,2627.0,2626.9,0.38069]
[1727275396883,0.3934,2627.0,2626.8,0.3807]
[1727275397193,0.3934,2627.0,2626.7,8.3123092]
[1727275397394,0.3934,2627.0,2626.8,0.3807]
[1727275397587,0.3934,2627.0,2626.7,7.9315992]
[1727275397782,0.77408,2627.0,2626.7,8.3123092]
[1727275398087,0.3934,2627.0,2626.8,0.3807]
[1727275398292,0.3934,2627.0,2626.9,0.38069]
[1727275399496,0.3873,2627.2,2627.0,0.38067]
[1727275399882,0.76795,2627.2,2626.9,0.38069]
[1727275400189,0.38067,2627.1,2626.8,0.3807]
[1727275400389,0.38067,2627.1,2626.9,0.38069]
[1727275400589,3.05069,2627.0,2626.7,8.52181307]
[1727275400796,3.05069,2627.0,2626.7,0.38071]
[1727275401180,3.05069,2627.0,2626.8,7.92602378]
[1727275403191,3.05068,2627.0,2626.8,8.30673378]
[1727275404495,2.67,2627.0,2626.4,3.2078]
[1727275404693,0.3873,2627.2,2625.9,1.37112572]
[1727275404694,2.67,2626.5,2625.9,1.37112572]
[1727275404990,3.81457,2626.4,2626.2,0.38078]
[1727275405192,3.9637,2626.9,2626.1,8.04577724]
[1727275405385,3.9637,2626.9,2626.0,3.2078]
[1727275405386,3.05075,2626.5,2626.3,0.38077]
[1727275405694,0.38077,2626.4,2626.3,3.2078]
[1727275405993,2.67,2626.5,2626.3,3.58858]
[1727275406191,0.38076,2626.5,2626.3,3.2078]
[1727275406381,0.38074,2626.6,2626.3,3.58857]
[1727275406891,6.6337,2626.9,2626.5,0.38074]
[1727275407093,0.38068,2627.0,2626.4,0.3793]
[1727275407288,0.38068,2627.0,2626.6,3.2078]
[1727275407484,8.12307,2627.4,2626.6,3.2078]
[1727275407485,0.38071,2626.8,2626.6,3.2078]
[1727275408382,0.75291,2626.8,2626.6,3.2078]
[1727275408783,0.3722,2626.8,2626.6,3.2078]
[1727275408992,0.3722,2626.8,2626.6,3.58853]
[1727275409290,0.7675,2627.1,2626.6,3.2078]
[1727275409490,0.7378,2627.1,2626.8,0.3807]
[1727275409687,0.7378,2627.1,2626.8,0.38069]
[1727275409989,0.7378,2627.1,2626.9,3.2078]
[1727275410199,0.7378,2627.1,2627.0,0.38068]
[1727275410396,0.7378,2627.1,2626.9,3.58848]
[1727275410592,0.7378,2627.1,2626.9,3.58849]
[1727275410788,0.7378,2627.1,2626.9,3.2078]
[1727275411097,1.11846,2627.1,2626.9,3.2078]
[1727275412891,1.11847,2627.1,2626.9,3.2078]
[1727275413398,0.38068,2627.0,2626.9,3.2078]
[1727275413699,0.38068,2627.0,2626.4,0.7453]
[1727275413700,4.7581,2627.0,2626.4,0.7453]
[1727275413997,3.29,2626.8,2626.4,0.38076]
[1727275414195,0.95174,2626.9,2626.4,0.38076]
[1727275414403,0.38074,2626.6,2626.3,3.58857]
[1727275414997,0.38074,2626.6,2626.4,0.38076]
[1727275415494,0.38076,2626.5,2626.1,3.58]
[1727275415692,0.395,2626.5,2626.3,0.38077]
[1727275416001,0.395,2626.5,2626.1,0.38081]
[1727275416191,0.38078,2626.3,2626.1,0.38081]
[1727275416395,0.77257,2626.4,2626.0,3.5765]
[1727275416592,0.3918,2626.4,2626.3,0.38078]
[1727275416805,0.3918,2626.4,2626.3,3.58858]
[1727275416996,0.77575,2626.5,2626.4,0.38076]
[1727275416997,0.395,2626.5,2626.4,0.38076]
[1727275417297,0.395,2626.5,2626.3,3.58857]
[1727275418303,0.395,2626.5,2626.4,0.38076]
[1727275418496,0.395,2626.5,2626.3,3.58857]
[1727275418808,0.395,2626.5,2626.3,3.2078]
[1727275419204,0.395,2626.5,2626.3,3.58857]
[1727275419404,0.77575,2626.5,2626.3,3.2078]
[1727275419711,0.77576,2626.5,2626.3,3.2078]
[1727275420091,0.77576,2626.5,2626.4,0.38076]
[1727275420092,0.395,2626.5,2626.4,0.38076]
[1727275420311,0.395,2626.5,2626.3,3.2078]
[1727275420599,0.77575,2626.5,2626.3,3.2078]
[1727275420993,0.38076,2626.4,2626.3,3.2078]
[1727275421190,0.77575,2626.5,2626.2,0.38078]
[1727275421501,0.38081,2626.1,2626.0,3.2078]
[1727275421708,1.33283,2626.1,2626.0,3.2078]
[1727275421904,1.33283,2626.1,2625.4,3.2078]
[1727275421905,4.18881,2626.1,2625.4,3.2078]
[1727275422204,0.3809,2625.5,2625.4,3.2078]
[1727275422393,0.38089,2625.5,2625.4,3.2078]
[1727275422594,3.29,2625.8,2625.4,3.2078]
[1727275423101,0.38089,2625.5,2625.4,3.2078]
[1727275423304,0.38089,2625.5,2625.2,0.38093]
[1727275423495,3.29,2625.8,2625.1,3.2078]
[1727275423496,0.38089,2625.6,2625.1,3.2078]
[1727275423697,0.38089,2625.6,2625.3,0.38092]
[1727275424101,3.29,2625.8,2625.4,0.38091]
[1727275424102,0.38087,2625.7,2625.4,0.38091]
[1727275424299,3.29,2625.8,2625.1,3.2078]
[1727275424602,0.38092,2625.4,2625.1,3.2078]
[1727275424991,0.38089,2625.6,2625.2,0.38093]
[1727275425193,0.38087,2625.7,2625.3,0.38091]
[1727275425498,0.38088,2625.6,2625.3,0.38092]
[1727275425699,0.38087,2625.7,2625.3,0.38092]
[1727275425997,0.38087,2625.7,2625.1,3.2078]
[1727275426312,0.38087,2625.7,2625.3,0.38091]
[1727275427503,0.38087,2625.7,2625.1,3.2078]
[1727275427807,0.38087,2625.7,2625.3,0.38091]
[1727275428299,3.06087,2625.7,2625.3,0.38091]
[1727275429506,2.68,2625.7,2625.4,0.3809]
[1727275429812,2.07558,2626.0,2625.6,0.38088]
[1727275429813,1.1235,2626.0,2625.6,0.38088]
[1727275429999,1.50433,2626.0,2625.7,3.2078]
[1727275430198,1.1235,2626.0,2625.7,3.2078]
[1727275430510,1.50434,2626.0,2625.7,3.2078]
[1727275430697,1.50434,2626.0,2625.5,1.13729]
[1727275430698,0.38086,2625.8,2625.5,1.13729]
[1727275430893,3.06084,2625.9,2625.5,0.7564]
[1727275431095,2.68,2625.9,2625.5,0.7564]
[1727275431300,2.68,2625.9,2625.7,3.2078]
[1727275431508,3.06084,2625.9,2625.7,3.2078]
[1727275431805,3.06084,2625.9,2625.5,0.7564]
[1727275431806,0.38086,2625.8,2625.5,0.75909]
[1727275432105,1.1235,2626.0,2625.4,3.2078]
[1727275432106,2.68,2625.7,2625.4,3.2078]
[1727275432402,2.68,2625.5,2625.4,3.2078]
[1727275432707,2.68,2625.6,2625.4,3.58871]
[1727275433001,2.68,2625.6,2625.4,3.2078]
[1727275433199,2.68,2625.6,2625.4,3.5887]
[1727275433409,2.68,2625.6,2625.4,3.2078]
[1727275433613,2.68,2625.6,2625.4,3.5887]
[1727275434108,3.06089,2625.6,2625.4,3.2078]
[1727275434311,0.76849,2625.5,2625.4,3.2078]
[1727275434500,0.3876,2625.5,2625.1,3.2078]
[1727275434811,3.0604,2625.4,2625.3,0.38092]
[1727275434997,3.06086,2625.8,2625.5,0.38088]
[1727275435201,3.4498,2625.8,2625.4,3.5887]
[1727275435413,0.38086,2625.7,2625.4,3.5887]
[1727275435607,3.4498,2625.8,2625.5,0.38088]
[1727275435608,3.83066,2625.8,2625.5,0.38088]
[1727275435811,3.83065,2625.8,2625.5,0.38089]
[1727275436716,0.38084,2625.9,2625.4,3.2078]
[1727275437009,0.38084,2625.9,2625.6,0.38087]
[1727275438414,0.38086,2625.8,2625.5,1.16388]
[1727275438900,0.38086,2625.8,2625.5,0.783]
[1727275439310,0.38084,2625.9,2625.6,0.38087]
[1727275439510,3.0694,2626.0,2625.5,0.783]
[1727275439511,3.0694,2626.0,2625.7,0.38086]
[1727275439696,3.0694,2626.0,2625.7,3.2078]
[1727275439697,0.38084,2625.9,2625.7,3.2078]
[1727275439905,0.38084,2625.9,2625.7,3.58866]
[1727275440412,3.06085,2625.8,2625.7,3.2078]
[1727275440615,2.68,2625.8,2625.7,3.2078]
[1727275440797,0.38084,2625.9,2625.7,3.2078]
[1727275441198,3.06085,2625.8,2625.7,3.2078]
[1727275441609,1.33298,2625.8,2625.7,3.2078]